fUST/lending_fUST_20250605
["ID","MTS","AMOUNT","RATE_DAILY","PERIOD"]
[364525876,1749126665088,-604.7773,0.000232,7]
[364525877,1749126665097,-604.7773,0.000232,7]
[364525878,1749126665107,-151.0,0.000232,7]
[364525879,1749126665115,-355.755586,0.000232,7]
[364525880,1749126665125,-151.0,0.000232,7]
[364525881,1749126665134,-355.755586,0.000232,7]
[364525882,1749126665143,-151.0,0.000232,7]
[364525883,1749126665153,-1723.861821,0.000232,7]
[364525884,1749126665162,-1723.861821,0.000232,7]
[364525885,1749126665172,-151.0,0.000232,7]
[364525886,1749126665183,-388.529233,0.000232,7]
[364525887,1749126665192,-388.529233,0.000232,7]
[364525888,1749126665202,-151.0,0.000232,7]
[364525889,1749126665215,-260.79556,0.000232,7]
[364525890,1749126665224,-151.0,0.000232,7]
[364525891,1749126665235,-324.245001,0.000232,7]
[364525892,1749126665245,-163.582618,0.000232,7]
[364525893,1749126665254,-324.245001,0.000232,7]
[364525894,1749126665265,-163.582618,0.000232,7]
[364525895,1749126665274,-151.0,0.000232,7]
[364525896,1749126665285,-277.136073,0.000232,7]
[364525897,1749126665295,-277.136073,0.000232,7]
[364525898,1749126665305,-3929.637417,0.000232,2]
[364525899,1749126665314,-3929.637417,0.000232,2]
[364525900,1749126665324,-893.39,0.00023211,5]
[364525901,1749126665333,-3064.15532361,0.00023265,2]
[364525902,1749126665343,-500.0,0.00023283,2]
[364525903,1749126665352,-440.0,0.00023287,2]
[364525904,1749126665362,-488.16,0.00023287,2]
[364525905,1749126665375,-151.0,0.00023287,7]
[364525906,1749126665385,-1078.06,0.00023287,2]
[364525907,1749126665395,-759.89,0.00023287,2]
[364525908,1749126665404,-543.28,0.00023287,2]
[364525909,1749126665414,-469.06,0.00023287,2]
[364525910,1749126665424,-2040.51,0.00023287,2]
[364525911,1749126665433,-440.0,0.00023287,2]
[364525912,1749126665444,-3404.87,0.00023287,2]
[364525913,1749126665454,-2840.11,0.00023287,2]
[364525914,1749126665464,-1060.39,0.00023287,2]
[364525915,1749126665474,-1617.19,0.00023287,2]
[364525916,1749126665484,-1389.09,0.00023287,2]
[364525917,1749126665494,-474.25,0.00023287,2]
[364525918,1749126665504,-582.27,0.00023287,2]
[364525919,1749126665514,-3904.28,0.00023287,2]
[364525920,1749126665523,-454.45,0.00023287,2]
[364525921,1749126665534,-443.09,0.00023287,2]
[364525922,1749126665544,-1601.79,0.00023287,2]
[364525923,1749126665554,-690.08,0.00023287,2]
[364525924,1749126665564,-1463.54,0.00023287,2]
[364525925,1749126665573,-3830.81,0.00023287,2]
[364525926,1749126665583,-500.23,0.00023287,2]
[364525927,1749126665592,-601.71,0.00023287,2]
[364525928,1749126665602,-2318.29844864,0.00023287,2]
[364525929,1749126665614,-8506.83155136,0.00023287,2]
[364525930,1749126665624,-468.23,0.00023287,2]
[364525931,1749126665633,-738.51,0.00023287,2]
[364525932,1749126665642,-869.47,0.00023287,2]
[364525933,1749126665652,-3468.15,0.00023287,2]
[364525934,1749126665662,-665.26,0.00023287,2]
[364525935,1749126665672,-772.56,0.00023287,2]
[364525936,1749126665682,-619.68,0.00023287,2]
[364525937,1749126665693,-691.71,0.00023287,2]
[364525938,1749126665702,-3643.74,0.00023287,2]
[364525939,1749126665712,-2712.99,0.00023287,2]
[364525940,1749126665722,-440.0,0.00023287,2]
[364525941,1749126665732,-34876.832368,0.000233,2]
[364525942,1749126665741,-893.39,0.00023311,4]
[364525943,1749126665751,-159.89887137,0.00023315,2]
[364525944,1749126665761,-160.0,0.0002335,4]
[364525945,1749126665770,-160.0,0.0002335,5]
[364525946,1749126665779,-160.0,0.0002335,3]
[364525947,1749126665789,-160.91209467,0.0002335,5]
[364525948,1749126665799,-160.0,0.0002335,5]
[364525949,1749126665809,-800.0,0.00023356,2]
[364525950,1749126665818,-500.0,0.0002336,2]
[364525951,1749126665827,-500.0,0.0002337,2]
[364525952,1749126665836,-500.0,0.00023383,2]
[364525953,1749126665845,-893.39,0.00023411,4]
[364525954,1749126665856,-1183.35076228,0.00023415,2]
[364525955,1749126665866,-3000.0,0.00023487,2]
[364525956,1749126665875,-2500.0,0.00023487,2]
[364525957,1749126665886,-3064.15532361,0.00023498,2]
[364525958,1749126665895,-71261.91001035,0.000235,2]
[364525959,1749126665905,-151.0,0.000235,7]
[364525960,1749126665915,-151.0,0.000235,7]
[364525961,1749126665925,-1031.17,0.000235,2]
[364525962,1749126665935,-1002.01941245,0.000235,2]
[364525963,1749126665944,-893.39,0.00023511,3]
[364525964,1749126665954,-6058.49,0.00023515,2]
[364525965,1749126665965,-500.0,0.00023537,2]
[364525966,1749126665974,-500.0,0.00023558,2]
[364525967,1749126665983,-500.0,0.00023561,2]
[364525968,1749126665992,-440.0,0.00023561,2]
[364525969,1749126666002,-488.16,0.00023561,2]
[364525970,1749126666012,-1078.06,0.00023561,2]
[364525971,1749126666022,-759.89,0.00023561,2]
[364525972,1749126666031,-543.28,0.00023561,2]
[364525973,1749126666041,-469.06,0.00023561,2]
[364525974,1749126666051,-2040.51,0.00023561,2]
[364525975,1749126666060,-440.0,0.00023561,2]
[364525976,1749126666069,-3404.87,0.00023561,2]
[364525977,1749126666078,-2840.11,0.00023561,2]
[364525978,1749126666088,-1060.39,0.00023561,2]
[364525979,1749126666097,-1617.19,0.00023561,2]
[364525980,1749126666107,-1389.09,0.00023561,2]
[364525981,1749126666117,-474.25,0.00023561,2]
[364525982,1749126666127,-582.27,0.00023561,2]
[364525983,1749126666136,-195.442183,0.00023561,7]
[364525984,1749126666145,-3904.28,0.00023561,2]
[364525985,1749126666155,-454.45,0.00023561,2]
[364525986,1749126666165,-443.09,0.00023561,2]
[364525987,1749126666175,-1601.79,0.00023561,2]
[364525988,1749126666184,-324.245001,0.00023561,7]
[364525989,1749126666194,-163.582618,0.00023561,7]
[364525990,1749126666203,-324.245001,0.00023561,7]
[364525991,1749126666215,-163.58261,0.00023561,7]
[364525992,1749126666224,-690.08,0.00023561,2]
[364525993,1749126666233,-1463.54,0.00023561,2]
[364525994,1749126666243,-3830.81,0.00023561,2]
[364525995,1749126666252,-500.23,0.00023561,2]
[364525996,1749126666262,-277.136073,0.00023561,7]
[364525997,1749126666271,-601.71,0.00023561,2]
[364525998,1749126666280,-277.136073,0.00023561,7]
[364525999,1749126666290,-10825.13,0.00023561,2]
[364526000,1749126666299,-468.23,0.00023561,2]
[364526001,1749126666308,-738.51,0.00023561,2]
[364526002,1749126666317,-869.47,0.00023561,2]
[364526003,1749126666327,-3468.15,0.00023561,2]
[364526004,1749126666338,-665.26,0.00023561,2]
[364526005,1749126666348,-772.56,0.00023561,2]
[364526006,1749126666357,-619.68,0.00023561,2]
[364526007,1749126666369,-691.71,0.00023561,2]
[364526008,1749126666378,-3643.74,0.00023561,2]
[364526009,1749126666388,-3929.637417,0.00023561,2]
[364526010,1749126666397,-3929.637417,0.00023561,2]
[364526011,1749126666408,-2712.99,0.00023561,2]
[364526012,1749126666418,-440.0,0.00023561,2]
[364526013,1749126666427,-160.0,0.000236,3]
[364526014,1749126666436,-893.39,0.00023611,4]
[364526015,1749126666446,-500.0,0.00023611,2]
[364526016,1749126666456,-4669.86500402,0.00023613,7]
[364526017,1749126666466,-1186.852736,0.00023614,7]
[364526018,1749126666476,-1186.852736,0.00023614,7]
[364526019,1749126666486,-151.0,0.00023614,7]
[364526020,1749126666495,-151.0,0.00023614,7]
[364526021,1749126666505,-604.7773,0.00023614,7]
[364526022,1749126666514,-604.7773,0.00023614,7]
[364526023,1749126666524,-151.0,0.00023614,7]
[364526024,1749126666534,-355.755586,0.00023614,7]
[364526025,1749126666543,-151.0,0.00023614,7]
[364526026,1749126666552,-355.755586,0.00023614,7]
[364526027,1749126666562,-151.0,0.00023614,7]
[364526028,1749126666573,-1723.861821,0.00023614,7]
[364526029,1749126666583,-1723.861821,0.00023614,7]
[364526030,1749126666592,-388.529233,0.00023614,7]
[364526031,1749126666602,-388.529233,0.00023614,7]
[364526032,1749126666611,-151.0,0.00023614,7]
[364526033,1749126666620,-151.0,0.00023614,7]
[364526034,1749126666630,-5078.31436759,0.00023614,2]
[364526035,1749126666639,-5000.0,0.00023614,2]
[364526036,1749126666649,-5000.0,0.00023614,2]
[364526037,1749126666658,-5000.0,0.00023614,2]
[364526038,1749126666668,-5000.0,0.00023614,2]
[364526039,1749126666678,-5000.0,0.00023632,7]
[364526040,1749126666688,-500.0,0.00023635,2]
[364526041,1749126666698,-500.0,0.00023647,2]
[364526042,1749126666708,-5000.0,0.00023652,7]
[364526043,1749126666717,-151.0,0.00023659,7]
[364526044,1749126666726,-151.0,0.00023659,7]
[364526045,1749126666735,-158.60015691,0.00023659,7]
[364526046,1749126666745,-318.63776,0.00023659,7]
[364526047,1749126666754,-151.0,0.00023659,7]
[364526048,1749126666763,-456.148822,0.00023659,7]
[364526049,1749126666772,-456.148822,0.00023659,7]
[364526050,1749126666781,-500.0,0.00023668,2]
[364526051,1749126666791,-5000.0,0.00023671,7]
[364526052,1749126666801,-5000.0,0.00023691,7]
[364526053,1749126666811,-500.0,0.00023694,2]
[364526054,1749126666820,-5000.0,0.0002371,7]
[364526055,1749126666829,-893.39,0.00023711,2]
[364526056,1749126666838,-5000.0,0.0002373,7]
[364526057,1749126666848,-3064.15532361,0.00023731,2]
[364526058,1749126666857,-229.48950782,0.000238,3]
[364526059,1749126666867,-182318.99347106,0.000238,3]
[364526060,1749126666876,-893.39,0.00023811,4]
[364526061,1749126666886,-151.0,0.00023835,7]
[364526062,1749126666895,-440.0,0.00023835,2]
[364526063,1749126666904,-488.16,0.00023835,2]
[364526064,1749126666914,-1078.06,0.00023835,2]
[364526065,1749126666924,-759.89,0.00023835,2]
[364526066,1749126666933,-543.28,0.00023835,2]
[364526067,1749126666942,-469.06,0.00023835,2]
[364526068,1749126666952,-2040.51,0.00023835,2]
[364526069,1749126666962,-440.0,0.00023835,2]
[364526070,1749126666972,-3404.87,0.00023835,2]
[364526071,1749126666982,-2840.11,0.00023835,2]
[364526072,1749126666991,-1060.39,0.00023835,2]
[364526073,1749126667001,-1617.19,0.00023835,2]
[364526074,1749126667011,-1389.09,0.00023835,2]
[364526075,1749126667020,-474.25,0.00023835,2]
[364526076,1749126667032,-582.27,0.00023835,2]
[364526077,1749126667041,-3904.28,0.00023835,2]
[364526078,1749126667050,-454.45,0.00023835,2]
[364526079,1749126667060,-443.09,0.00023835,2]
[364526080,1749126667069,-1601.79,0.00023835,2]
[364526081,1749126667079,-690.08,0.00023835,2]
[364526082,1749126667089,-1463.54,0.00023835,2]
[364526083,1749126667098,-3830.81,0.00023835,2]
[364526084,1749126667109,-500.23,0.00023835,2]
[364526085,1749126667119,-601.71,0.00023835,2]
[364526086,1749126667130,-10825.13,0.00023835,2]
[364526087,1749126667140,-468.23,0.00023835,2]
[364526088,1749126667152,-738.51,0.00023835,2]
[364526089,1749126667161,-869.47,0.00023835,2]
[364526090,1749126667171,-3468.15,0.00023835,2]
[364526091,1749126667182,-665.26,0.00023835,2]
[364526092,1749126667192,-772.56,0.00023835,2]
[364526093,1749126667202,-619.68,0.00023835,2]
[364526094,1749126667212,-691.71,0.00023835,2]
[364526095,1749126667222,-3643.74,0.00023835,2]
[364526096,1749126667232,-2712.99,0.00023835,2]
[364526097,1749126667242,-440.0,0.00023835,2]
[364526098,1749126667251,-500.0,0.00023846,2]
[364526099,1749126667260,-505.92166441,0.00023849,2]
[364526100,1749126667270,-500.0,0.00023852,2]
[364526101,1749126667279,-500.09728342,0.00023896,2]
[364526102,1749126667288,-323.85743349,0.000239,2]
[364526103,1749126667298,-200.0,0.000239,3]
[364526104,1749126667307,-3354.05,0.000239,7]
[364526105,1749126667316,-500.0,0.00023906,2]
[364526106,1749126667328,-893.39,0.00023911,5]
[364526107,1749126667338,-151.0,0.00023911,7]
[364526108,1749126667347,-3064.15532361,0.00023964,2]
[364526109,1749126667356,-536.48836778,0.00023987,2]
[364526110,1749126667370,-32205.7151344,0.00023995,2]
[364526111,1749126667379,-3522.87380066,0.00024,2]
[364526112,1749126667389,-4572.0,0.00024,2]
[364526113,1749126667398,-4572.0,0.00024,2]
[364526114,1749126667408,-4572.0,0.00024,2]
[364526115,1749126667417,-4572.0,0.00024,2]
[364526116,1749126667426,-4572.0,0.00024,2]
[364526117,1749126667435,-1000.0,0.00024,24]
[364526118,1749126667446,-8499.01966,0.00024,30]
[364526119,1749126667455,-249686.39055449,0.00024,2]
[364526120,1749126667464,-269.29926453,0.00024,60]
[364526121,1749126667474,-4572.0,0.00024,2]
[364526122,1749126667483,-4572.0,0.00024,2]
[364526123,1749126667493,-152.0,0.00024,2]
[364526124,1749126667502,-7000.0,0.00024,2]
[364526125,1749126667512,-51617.33356207,0.00024,2]
[364526126,1749126667521,-229.48950782,0.00024,7]
[364526127,1749126667530,-316372.2233382,0.00024,3]
[364526128,1749126667540,-27349.44,0.00024,2]
[364526129,1749126667550,-160.0,0.00024,3]
[364526130,1749126667560,-160.0,0.00024,7]
[364526131,1749126667569,-225.842,0.00024,7]
[364526132,1749126667578,-2000.0,0.00024,2]
[364526133,1749126667588,-151.0,0.00024,7]
[364526134,1749126667597,-151.0,0.00024,7]
[364526135,1749126667608,-318.63776,0.00024,7]
[364526136,1749126667618,-318.63776,0.00024,7]
[364526137,1749126667628,-151.0,0.00024,7]
[364526138,1749126667638,-151.0,0.00024,7]
[364526139,1749126667647,-151.0,0.00024,7]
[364526140,1749126667657,-500.0,0.00024,2]
[364526141,1749126667667,-500.0,0.00024,2]
[364526142,1749126667676,-500.0,0.00024,2]
[364526143,1749126667686,-155.388422,0.00024,3]
[364526144,1749126667695,-500.0,0.00024,2]
[364526145,1749126667803,-151.0,0.00024,7]
[364526146,1749126667813,-151.0,0.00024,7]
[364526147,1749126667823,-500.0,0.00024,2]
[364526148,1749126667833,-503.05868216,0.00024,2]
[364526149,1749126667843,-456.148822,0.00024,7]
[364526150,1749126667852,-456.148822,0.00024,7]
[364526151,1749126667862,-456.148822,0.00024,7]
[364526152,1749126667871,-456.148822,0.00024,7]
[364526153,1749126667881,-1150.0,0.00024,5]
[364526154,1749126667890,-1186.852736,0.00024,7]
[364526155,1749126667900,-1186.852736,0.00024,7]
[364526156,1749126667910,-1186.852736,0.00024,7]
[364526157,1749126667919,-1186.852736,0.00024,7]
[364526158,1749126667930,-151.0,0.00024,7]
[364526159,1749126667940,-151.0,0.00024,7]
[364526160,1749126667950,-151.0,0.00024,7]
[364526161,1749126667961,-151.0,0.00024,7]
[364526162,1749126667971,-604.7773,0.00024,7]
[364526163,1749126667980,-604.7773,0.00024,7]
[364526164,1749126667990,-604.7773,0.00024,7]
[364526165,1749126667999,-604.7773,0.00024,7]
[364526166,1749126668009,-151.0,0.00024,7]
[364526167,1749126668019,-151.0,0.00024,7]
[364526168,1749126668029,-355.755586,0.00024,7]
[364526169,1749126668039,-355.755586,0.00024,7]
[364526170,1749126668048,-151.0,0.00024,7]
[364526171,1749126668057,-255.109384,0.00024,7]
[364526172,1749126668067,-355.755586,0.00024,7]
[364526173,1749126668076,-355.755586,0.00024,7]
[364526174,1749126668086,-151.0,0.00024,7]
[364526175,1749126668095,-151.0,0.00024,7]
[364526176,1749126668105,-1723.861821,0.00024,7]
[364526177,1749126668115,-1723.861821,0.00024,7]
[364526178,1749126668125,-1723.861821,0.00024,7]
[364526179,1749126668134,-1723.861821,0.00024,7]
[364526180,1749126668144,-9884.71408012,0.00024,2]
[364526181,1749126668153,-388.529233,0.00024,7]
[364526182,1749126668162,-388.529233,0.00024,7]
[364526183,1749126668171,-388.529233,0.00024,7]
[364526184,1749126668180,-388.529233,0.00024,7]
[364526185,1749126668189,-151.0,0.00024,7]
[364526186,1749126668198,-152.476461,0.00024,7]
[364526187,1749126668209,-151.0,0.00024,7]
[364526188,1749126668220,-151.0,0.00024,7]
[364526189,1749126668231,-500.0,0.00024,2]
[364526190,1749126668241,-500.0,0.00024,2]
[364526191,1749126668252,-500.0,0.00024,2]
[364526192,1749126668263,-500.0,0.00024,2]
[364526193,1749126668273,-500.0,0.00024,2]
[364526194,1749126668283,-160.0,0.00024,7]
[364526195,1749126668292,-324.245001,0.00024,7]
[364526196,1749126668301,-324.245001,0.00024,7]
[364526197,1749126668311,-324.245001,0.00024,7]
[364526198,1749126668321,-324.244995,0.00024,7]
[364526199,1749126668330,-277.136073,0.00024,7]
[364526200,1749126668339,-277.136066,0.00024,7]
[364526201,1749126668349,-3929.637417,0.00024,2]
[364526202,1749126668358,-3929.63741824,0.00024,2]
[364526203,1749126668370,-893.39,0.00024011,2]
[364526204,1749126668381,-3600.0,0.00024035,2]
[364526205,1749126668390,-3000.0,0.00024035,2]
[364526206,1749126668400,-500.0,0.00024095,2]
[364526207,1749126668411,-2248.01,0.000241,7]
[364526208,1749126668420,-440.0,0.00024109,2]
[364526209,1749126668430,-488.16,0.00024109,2]
[364526210,1749126668440,-1078.06,0.00024109,2]
[364526211,1749126668452,-759.89,0.00024109,2]
[364526212,1749126668463,-543.28,0.00024109,2]
[364526213,1749126668473,-469.06,0.00024109,2]
[364526214,1749126668483,-2040.51,0.00024109,2]
[364526215,1749126668492,-440.0,0.00024109,2]
[364526216,1749126668502,-3404.87,0.00024109,2]
[364526217,1749126668512,-2840.11,0.00024109,2]
[364526218,1749126668523,-575.87469009,0.00024109,2]
[364526219,1749126668533,-1060.39,0.00024109,2]
[364526220,1749126668543,-1617.19,0.00024109,2]
[364526221,1749126668552,-1389.09,0.00024109,2]
[364526222,1749126668562,-474.25,0.00024109,2]
[364526223,1749126668571,-582.27,0.00024109,2]
[364526224,1749126668581,-3904.28,0.00024109,2]
[364526225,1749126668592,-454.45,0.00024109,2]
[364526226,1749126668602,-443.09,0.00024109,2]
[364526227,1749126668612,-1601.79,0.00024109,2]
[364526228,1749126668621,-690.08,0.00024109,2]
[364526229,1749126668631,-1463.54,0.00024109,2]
[364526230,1749126668640,-3830.81,0.00024109,2]
[364526231,1749126668650,-500.23,0.00024109,2]
[364526232,1749126668659,-601.71,0.00024109,2]
[364526233,1749126668670,-10825.13,0.00024109,2]
[364526234,1749126668679,-468.23,0.00024109,2]
[364526235,1749126668688,-738.51,0.00024109,2]
[364526236,1749126668698,-869.47,0.00024109,2]
[364526237,1749126668708,-3468.15,0.00024109,2]
[364526238,1749126668718,-665.26,0.00024109,2]
[364526239,1749126668727,-772.56,0.00024109,2]
[364526240,1749126668737,-619.68,0.00024109,2]
[364526241,1749126668746,-691.71,0.00024109,2]
[364526242,1749126668756,-3643.74,0.00024109,2]
[364526243,1749126668766,-2712.99,0.00024109,2]
[364526244,1749126668775,-440.0,0.00024109,2]
[364526245,1749126668784,-893.39,0.00024111,3]
[364526246,1749126668793,-456.148822,0.00024149,7]
[364526247,1749126668802,-456.148822,0.00024149,7]
[364526248,1749126668811,-1186.852736,0.00024149,7]
[364526249,1749126668821,-1186.852738,0.00024149,7]
[364526250,1749126668831,-151.0,0.00024149,7]
[364526251,1749126668841,-604.7773,0.00024149,7]
[364526252,1749126668850,-604.777298,0.00024149,7]
[364526253,1749126668859,-355.755586,0.00024149,7]
[364526254,1749126668869,-355.75559,0.00024149,7]
[364526255,1749126668879,-1723.861821,0.00024149,7]
[364526256,1749126668888,-1723.861817,0.00024149,7]
[364526257,1749126668897,-262.0,0.00024164,7]
[364526258,1749126668906,-318.637756,0.00024167,7]
[364526259,1749126668916,-800.0,0.0002417,2]
[364526260,1749126668926,-3064.15532361,0.00024197,2]
[364526261,1749126668935,-2000.0,0.000242,2]
[364526262,1749126668945,-2000.0,0.000242,2]
[364526263,1749126668954,-2000.0,0.000242,2]
[364526264,1749126668964,-3705.5828018,0.000242,3]
[364526265,1749126668973,-250.0,0.000242,2]
[364526266,1749126668983,-250.0,0.000242,2]
[364526267,1749126668992,-250.0,0.000242,2]
[364526268,1749126669001,-250.0,0.000242,2]
[364526269,1749126669010,-250.0,0.000242,2]
[364526270,1749126669018,-250.0,0.000242,2]
[364526271,1749126669028,-250.0,0.000242,2]
[364526272,1749126669037,-250.0,0.000242,2]
[364526273,1749126669046,-250.0,0.000242,2]
[364526274,1749126669055,-250.0,0.000242,2]
[364526275,1749126669063,-250.0,0.000242,2]
[364526276,1749126669072,-250.0,0.000242,2]
[364526277,1749126669082,-250.0,0.000242,2]
[364526278,1749126669091,-250.0,0.000242,2]
[364526279,1749126669100,-250.0,0.000242,2]
[364526280,1749126669110,-250.0,0.000242,2]
[364526281,1749126669119,-251.5,0.000242,2]
[364526282,1749126669128,-58389.42380629,0.000242,7]
[364526283,1749126669866,-327.2,0.00018356,2]
[364526284,1749126669885,-112.8,0.00018356,2]
[364526285,1749126669894,-440.0,0.00018356,2]
[364526286,1749126669903,-440.0,0.00018356,2]
[364526287,1749126669912,-440.0,0.00018356,2]
[364526288,1749126669922,-440.0,0.00018356,2]
[364526289,1749126669931,-440.0,0.00018356,2]
[364526290,1749126669941,-440.0,0.00018356,2]
[364526291,1749126669950,-440.0,0.0001863,2]
[364526292,1749126669960,-440.0,0.0001863,2]
[364526293,1749126669969,-440.0,0.0001863,2]
[364526294,1749126669979,-440.0,0.0001863,2]
[364526295,1749126669988,-440.0,0.0001863,2]
[364526296,1749126669998,-440.0,0.0001863,2]
[364526297,1749126670008,-440.0,0.0001863,2]
[364526298,1749126670017,-207.86789901,0.00018904,2]
[364526299,1749126670027,-440.0,0.00018904,2]
[364526300,1749126670036,-440.0,0.00018904,2]
[364526301,1749126670046,-440.0,0.00018904,2]
[364526302,1749126670056,-440.0,0.00018904,2]
[364526303,1749126670066,-440.0,0.00018904,2]
[364526304,1749126670076,-440.0,0.00018904,2]
[364526305,1749126670085,-440.0,0.00019178,2]
[364526306,1749126670095,-440.0,0.00019178,2]
[364526307,1749126670104,-575.56541272,0.00019178,2]
[364526308,1749126670114,-440.0,0.00019178,2]
[364526309,1749126670232,-440.0,0.00019178,2]
[364526310,1749126670242,-440.0,0.00019178,2]
[364526311,1749126670252,-440.0,0.00019452,2]
[364526312,1749126670262,-440.0,0.00019452,2]
[364526313,1749126670272,-440.0,0.00019452,2]
[364526314,1749126670282,-480.62177314,0.00019452,2]
[364526315,1749126670293,-440.0,0.00019452,2]
[364526316,1749126670304,-440.0,0.00019726,2]
[364526317,1749126670314,-440.0,0.00019726,2]
[364526318,1749126670324,-340.0,0.00019726,2]
[364526319,1749126670334,-440.0,0.00019726,2]
[364526320,1749126670344,-500.0,0.00019999,2]
[364526321,1749126670354,-500.0,0.00019999,2]
[364526322,1749126670364,-500.0,0.00019999,2]
[364526323,1749126670377,-500.0,0.00019999,2]
[364526324,1749126670387,-500.0,0.00019999,2]
[364526325,1749126670396,-500.0,0.00019999,2]
[364526326,1749126670406,-500.0,0.00019999,2]
[364526327,1749126670418,-500.0,0.00019999,2]
[364526328,1749126670427,-500.0,0.00019999,2]
[364526329,1749126670436,-500.0,0.00019999,2]
[364526330,1749126670447,-460.81865609,0.00019999,2]
[364526331,1749126670458,-440.0,0.0002,2]
[364526332,1749126670471,-440.0,0.0002,2]
[364526333,1749126670484,-440.0,0.0002,2]
[364526334,1749126670493,-3084.59036109,0.00020141,2]
[364526335,1749126670504,-440.0,0.00020273,2]
[364526336,1749126670514,-440.0,0.00020273,2]
[364526337,1749126670524,-440.0,0.00020273,2]
[364526338,1749126670534,-3084.59036109,0.00020348,3]
[364526339,1749126670545,-440.0,0.00020547,2]
[364526340,1749126670554,-440.0,0.00020547,2]
[364526341,1749126670565,-440.0,0.00020547,2]
[364526342,1749126670574,-3084.59036109,0.00020555,3]
[364526343,1749126670584,-3084.59036109,0.00020762,3]
[364526344,1749126670594,-440.0,0.00020821,2]
[364526345,1749126670604,-440.0,0.00020821,2]
[364526346,1749126670614,-440.0,0.00020821,2]
[364526347,1749126670624,-3084.59036109,0.00020969,4]
[364526348,1749126670634,-440.0,0.00021095,2]
[364526349,1749126670643,-440.0,0.00021095,2]
[364526350,1749126670653,-3084.59036109,0.00021176,4]
[364526351,1749126670663,-440.0,0.00021369,2]
[364526352,1749126670672,-440.0,0.00021369,2]
[364526353,1749126670682,-3084.59036109,0.00021383,5]
[364526354,1749126670693,-3084.59036109,0.0002159,5]
[364526355,1749126670702,-440.0,0.00021643,2]
[364526356,1749126670714,-440.0,0.00021643,2]
[364526357,1749126670723,-3084.59036109,0.00021797,6]
[364526358,1749126670733,-440.0,0.00021917,2]
[364526359,1749126670743,-3084.59036109,0.00022003,6]
[364526360,1749126670752,-3084.59036109,0.0002221,6]
[364526361,1749126670763,-3084.59036109,0.00022417,7]
[364526362,1749126670773,-3084.59036109,0.00022624,7]
[364526363,1749126670782,-3084.59036109,0.00022831,8]
[364526364,1749126670792,-3084.59036109,0.00023038,8]
[364526365,1749126670802,-3084.59036109,0.00023245,8]
[364526366,1749126670811,-3084.59036109,0.00023452,9]
[364526367,1749126670821,-3084.59036109,0.00023659,9]
[364526368,1749126670831,-90734.36619371,0.000242,7]
[364526369,1749126670840,-151.0,0.000242,7]
[364526370,1749126670850,-151.0,0.000242,7]
[364526371,1749126670859,-297.237379,0.000242,7]
[364526372,1749126670870,-151.0,0.000242,7]
[364526373,1749126670880,-151.0,0.000242,7]
[364526374,1749126670889,-388.529233,0.000242,7]
[364526375,1749126670899,-388.529233,0.000242,7]